Cogmind - Beta 13 @@@ ROGUE MODE // 2024.04.29 @ 21:48:38 Player: Some Pennies Result: Destroyed by G-47 Trooper with Particle Gun Performance ------------- Evolutions (0) 0 Regions Visited (1) 200 Robots Destroyed (11) 55 Value Destroyed (137) 137 Prototype IDs (0) 0 Alien Tech Used (0) 0 Bonus (0) 0 TOTAL SCORE: 392 Bonus ------- None Cogmind --------- Core Integrity 0/250 Matter 265/300 Energy 99/100 System Corruption 0% Temperature Danger (430) Movement Core (350) Ox6 Location -10/Materials Parts ------- > --- POWER (1) -------- (None) > --- PROPULSION (2) --- (None) > --- UTILITY (2) ------ Large Storage Unit > --- WEAPON (2) ------- (None) > --- INVENTORY (15) --- Ion Engine Improved Terrain Scanner Seismic Detector Mining Laser Peak State ------------ > --- POWER ------------ Light Ion Engine > --- PROPULSION ------- Light Treads Light Treads > --- UTILITY ---------- Small Storage Unit Improved Terrain Scanner > --- WEAPON ----------- Medium Laser Light Assault Rifle > --- INVENTORY -------- Ion Engine Seismic Detector Medium Laser [Rating: 9] Favorites ----------- Power Light Ion Engine Engine Light Ion Engine Propulsion Light Treads Treads Light Treads Utility Improved Terrain Scanner Device Improved Terrain Scanner Storage Small Storage Unit Weapon Medium Laser Energy Gun Medium Laser Ballistic Gun Light Assault Rifle Build | -11 -10 ------- Run | Yrd Mat Slots Evolved . | . . Power . | . . Propulsion . | . . Utility . | . . Weapon . | . . Parts Attached 10 | 8 2 Power 1 | 1 . Engine 1 | 1 . Core . | . . Reactor . | . . Propulsion 2 | 2 . Treads 2 | 2 . Leg . | . . Wheel . | . . Hover . | . . Flight . | . . Utility 4 | 3 1 Device 2 | 2 . Storage 2 | 1 1 Processor . | . . Hackware . | . . Protection . | . . Artifact . | . . Weapon 3 | 2 1 Energy Gun 2 | 1 1 Energy Cannon . | . . Ballistic Gun 1 | 1 . Ballistic Cannon . | . . Launcher . | . . Special Weapon . | . . Impact Weapon . | . . Slashing Weapon . | . . Piercing Weapon . | . . Special Melee Weapon . | . . Unidentified Prototypes . | . . Parts Lost 7 | . 7 Power 1 | . 1 Propulsion 2 | . 2 Utility 1 | . 1 Weapon 3 | . 3 Highest Loss Streak 7 | . 7 To Critical Strikes . | . . Average Slot Usage (%) 95 | . 95 Engine 12 | . 12 Treads 24 | . 24 Device 14 | . 14 Storage 14 | . 14 Energy Gun 15 | . 15 Ballistic Gun 12 | . 12 Naked Turns . | . . Heaviest Build 23 | 12 23 Greatest Support 40 | 40 40 Greatest Overweight (x) 7 | 1 7 Average Overweight (x) . | . . Largest Inventory Capacity 15 | 8 15 Average Capacity 8 | 7 11 Most Carried 6 | 5 6 Average Carried 4 | 4 4 Final Capacity 15 | 8 15 Final Carried 5 | 5 4 Class Distribution -------------------- 100% | Mutant Dominant Class ---------------- Mutant | -10/Materials Resources | -11 -10 ----------- Run | Yrd Mat Matter Collected 317 | 317 . Remotely . | . . Salvage Created 307 | 231 76 Parts 24 | 21 3 Haulers Intercepted . | . . Recyclers Shooed 1 | 1 . Parts Field Recycled . | . . Retrieved Matter . | . . Parts Self-Destructed . | . . Prevented . | . . Kills | -11 -10 ------- Run | Yrd Mat Combat Hostiles Destroyed 2 | . 2 Guns 2 | . 2 Classes Destroyed 4 | 3 1 Worker 1 | 1 . Tunneler 7 | 7 . Recycler 1 | 1 . Grunt 2 | . 2 Best Kill Streak 2 | 2 1 Combat Bots Only 1 | . 1 Max Kills in Single Turn 1 | 1 1 Gunslinging . | . . Exploded . | . . Melee . | . . Uniques/NPCs Destroyed . | . . Combat | -11 -10 -------- Run | Yrd Mat Hostile Shots Fired 80 | . 80 Missed 16 | . 16 Damage Taken 872 | . 872 Core 262 | . 262 Absorbed by Shields . | . . Core Remaining (%) 100 | 100 . Volleys Fired 57 | 37 20 Largest 2 | 2 2 Hottest 100 | 70 100 Shots Fired 112 | 74 38 Gun 112 | 74 38 Cannon . | . . Launcher . | . . Special . | . . Kinetic 54 | 37 17 Thermal 58 | 37 21 Explosive . | . . Electromagnetic . | . . Robot Hit Streak 7 | 7 4 Robot Miss Streak 5 | 4 5 Penetration Max . | . . Secondary Targets . | . . Shots Hit Robots 64 | 42 22 Core Hits 23 | 14 9 Critical Kills . | . . Critical Parts Destroyed . | . . Critical Strikes 3 | 1 2 Burn 3 | 1 2 Melee Attacks . | . . Impact . | . . Slashing . | . . Piercing . | . . Sneak Attacks . | . . Combat Hostiles . | . . Follow-up Attacks . | . . Damage Inflicted 764 | 481 283 Guns 764 | 481 283 Cannons . | . . Explosions . | . . Melee . | . . Ramming . | . . Kinetic 262 | 168 94 Thermal 502 | 313 189 Explosive . | . . Electromagnetic . | . . Impact . | . . Slashing . | . . Piercing . | . . Highest Corruption . | . . Average Corruption . | . . Corruption Purged . | . . Corruption Blocked . | . . Overload Shots . | . . Overflow Damage . | . . Projectiles . | . . Explosions . | . . Melee . | . . Knockbacks . | . . Impact . | . . Kinetic . | . . Secondary . | . . Self-Inflicted Damage . | . . Shots . | . . Rammed . | . . Targets Rammed . | . . Kicked . | . . Crushed . | . . Highest Temperature 543 | 120 543 Average Temperature 127 | 34 312 Received Heat Transfer 411 | . 411 Effects 14 | . 14 Shutdowns 2 | . 2 Interference 3 | . 3 Matter Decay 1 | . 1 Short Circuit 1 | . 1 Damage (minor) 1 | . 1 Damage (major) 4 | . 4 Damage (core) 2 | . 2 Siege Activations . | . . Robots Corrupted . | . . Combat Hostiles . | . . Parts Fried . | . . Impact Corruptions . | . . Robots Melted . | . . Combat Hostiles . | . . Parts Melted 1 | . 1 Heat Transferred 1702 | 999 703 Parts Sabotaged . | . . Parts Stolen . | . . Parts Stripped . | . . Power Chain Reactions . | . . Alert | -11 -10 ------- Run | Yrd Mat Peak Influence 43 | 40 43 Initial 3 | . 3 Average 19 | 22 10 Maximum Alert Level . | . . Low Security (%) 100 | 100 100 Level 1 . | . . Level 2 . | . . Level 3 . | . . Level 4 . | . . Level 5 . | . . High Security . | . . Max Security . | . . Squads Dispatched . | . . Investigation . | . . Extermination . | . . Reinforcement . | . . Assault . | . . Garrison . | . . Intercept . | . . Searches Triggered . | . . Construction Impeded . | . . Haulers Reinforced . | . . Active Scanning Responses . | . . Cargo Convoy Interrupts . | . . Stealth | -11 -10 --------- Run | Yrd Mat Distress Signals 2 | . 2 Communications Jammed . | . . Distress Signals . | . . Times Spotted 9 | . 9 Peak Tracking Total 7 | . 7 Tactical Retreats . | . . Traps | -11 -10 ------- Run | Yrd Mat Traps Triggered . | . . Indirectly . | . . Trap Hack Attempts . | . . Triggered . | . . Disarmed . | . . Reprogrammed . | . . Reused . | . . Traps Extracted . | . . Installed . | . . Triggered . | . . Machines | -11 -10 ---------- Run | Yrd Mat Machines Disabled . | . . Max in Single Turn . | . . Machines Repaired . | . . Machines Dismantled . | . . Machines Sabotaged . | . . Overloaded Fab Kills . | . . Hacking | -11 -10 --------- Run | Yrd Mat Machines Accessed . | . . Terminals . | . . Fabricators . | . . Repair Stations . | . . Recycling Units . | . . Scanalyzers . | . . Garrison Access . | . . Total Hacks . | . . Successful . | . . Failed . | . . Catastrophic . | . . Database Lockouts . | . . Manual . | . . Terminals . | . . Fabricators . | . . Repair Stations . | . . Recycling Units . | . . Scanalyzers . | . . Garrison Access . | . . Terminal Hacks . | . . Fabricator Hacks . | . . Repair Station Hacks . | . . Recycling Unit Hacks . | . . Scanalyzer . | . . Garrison Access Hacks . | . . Unauthorized Hacks . | . . Terminals . | . . Fabricators . | . . Repair Stations . | . . Recycling Units . | . . Scanalyzers . | . . Garrison Access . | . . Data Cores Recovered . | . . Used . | . . Hacking Detections . | . . Full Trace Events . | . . Feedback Events . | . . Feedback Blocked . | . . Robot Schematics Acquired . | . . Robots Built . | . . Authchips . | . . Time . | . . Total Robot Build Rating . | . . Part Schematics Acquired . | . . Parts Built . | . . Authchips . | . . Time . | . . Total Part Build Rating . | . . Parts Repaired . | . . Time . | . . Parts Recycled . | . . Recycled Matter . | . . Retrieved Matter . | . . Retrieved Components . | . . Parts Scanalyzed . | . . Part Schematics Acquired . | . . Parts Damaged . | . . Bothacking | -11 -10 ------------ Run | Yrd Mat Used RIF Installer . | . . Robots Hacked . | . . Non-combat . | . . Combat . | . . Robot Hacks Applied . | . . Relay Couplers Released . | . . Fabnet Peak Effective % . | . . Robots Rewired . | . . Allies Hacked . | . . Hacks Repelled . | . . Allies | -11 -10 -------- Run | Yrd Mat Total Allies . | . . Largest Group . | . . Highest-Rated Group . | . . Highest-Rated Ally . | . . Total Orders . | . . Ally Attacks . | . . Total Damage . | . . Kills . | . . Allies Corrupted . | . . Allies Melted . | . . Intel | -11 -10 ------- Run | Yrd Mat Robot Analysis Total . | . . Derelict Logs Recovered . | . . Drone Launches . | . . Drone Recoveries . | . . Exploration | -11 -10 ------------- Run | Yrd Mat Turns Passed 608 | 474 134 Spaces Moved 273 | 228 45 Core 18 | 15 3 Treads 255 | 213 42 Legs . | . . Wheels . | . . Hover . | . . Flight . | . . Fastest Speed 50 | 50 160 Average Speed 157 | 153 173 Slowest Speed 400 | 160 400 Overloaded Moves . | . . Propulsion Burnouts . | . . Robots Hopped . | . . Cave-ins Triggered . | . . Exploration Rate (%) 16 | 13 19 Regions Visited 1 Branch Regions . Pre-discovered Areas . | . . Known Exits Taken . | . . Unknown Exits Taken 1 | 1 . Scrap Searched . | . . Spaces Dug . | . . Terrain Destroyed . | . . Melee . | . . Projectile . | . . AOE . | . . Terrain Rammed . | . . Walls Destroyed . | . . Machines Disabled . | . . Actions | -11 -10 --------- Run | Yrd Mat Total 353 | 284 69 Wait . | . . Move 272 | 227 45 Hop . | . . Pick Up 13 | 12 1 Fast Attach . | . . Attach 8 | 7 1 Detach . | . . Swap 2 | 1 1 Drop 1 | . 1 Fire 57 | 37 20 Melee . | . . Ram . | . . Kick . | . . Crush . | . . Escape Stasis . | . . Rewire . | . . Trap . | . . Miscellaneous . | . . Route ------- -11/Scrapyard -10/Materials History --------- Turn | Location | Event 11 | -11/Scrapyard | Discovered new exit (range 15) 475 | -11/Scrapyard | Entered Materials 476 | -10/Materials | Build established: Mutant 599 | -10/Materials | Core integrity fell below 50% 604 | -10/Materials | Core integrity fell below 20% 609 | -10/Materials | Destroyed by G-47 Trooper with Particle Gun Last Messages --------------- 00596_ G-34 Mercenary heat damages Ion Engine, Sml. Laser, Heat Sink, Aluminum Leg. 00597_ R-06 Scavenger collects Sml. Storage Unit. 00598_ Overheating: Med. Laser damaged (-15). 00599_ Overheating: Lrg. Storage Unit damaged (-122). 00599_ Lgt. Ion Engine destroyed. 00600_ Overheating: Core damaged (-30). 00601_ Med. Laser broken. 00601_ Overheating: Short circuit. 00601_ Broken Med. Laser destroyed. 00603_ Overheating: Med. Laser damaged (-8). 00603_ Overheating: Imp. Terrain Scanner damaged (-9). 00603_ Overheating: Lrg. Storage Unit damaged (-137). 00603_ Critical hit (Burn: +37). 00604_ Med. Laser destroyed. 00607_ Imp. Terrain Scanner destroyed. Map ----- +----------------------------------------------------+ | ????????????????????########?????????????????????? | | ??????????#?????##### #?????????????????????? | | ?????????######## # """ #?????????????????????? | | ?????????# # # """ #?????????????????????? | | ???????#?# # # """ #?????????????????????? | | ?????????# + + #?????????????????????? | | ?????????# # # ! #?????????????????????? | | ?????????# # ###########??????????????????? | | ?????????# # # #??????????????????? | | ???????#?######## # #??????????????????? | | ????????#???#???# # #??????????????????? | | ???????????????## # #?????? ??????????? | | ???????????????## + # ???? ???????????? | | ????????????????# # % #??? ????????????? | | ?????????????##?# # # ?? #????????????? | | ????????????????# # #?? #????????????? | | ???????????#????# #######+### #????????????? | | ?????????????? ?# #?????# #?? #????????????? | | ????????????? # #??#??# ### ^ #?????"??????? | | ????????????## ####### #????????????? | | ??????????#???? # # "??????????? | | ????????#???#??## s "??????????? | | ?????????????#??# #????????????? | | ????????#???????# ###### #????????????? | | ????????#???????# ?##! #????????????? | | ????????????????# ?#! @ #+???????????? | | ????????????????? ?# s #????????? | | ????????????????????##! #????????? | | ?????????????????????#! g w """"""" #????????? | | ?????????????????????##! g """"""" #????????? | | ??????????????????????####=% """""""? ?????????? | | ?????????#???????????????# = """""?? ????????????? | | ????????????#???#????????# """"????????????????? | | ??????????#??#???????????# ?????????????????? | | ?????????????????????????# ????????????????? | | ?????????????????? ??????? ????????????????? | | ???????????????#?????????? ???????????????? | | ???????????????? ????????? ???????????????? | | ??????????????????????????#####+#+???????????????? | | ?????????????????????????????????????????????????? | | ????????????????????????#????????????????????????? | | ???????????????????? #???????????????????????????? | | ??????????????????????#??????????????????????????? | | ?????????????????????????????????????????????????? | | ?????????????????????????????????????????????????? | | ?????????????????????????????????????????????????? | | ?????????????????????????????????????????????????? | | ?????????????????????????????????????????????????? | | ?????????????????????????????????????????????????? | | ?????????????????????????????????????????????????? | +----------------------------------------------------+ Best States ------------- Heat Dissipation 25 Energy Generation 10 Energy Capacity 125 Matter Stores 300 Matter Capacity 300 Sight Range 16 Terrain Scan Range 16 Terrain Scan Density 10 Evasion (%) 40 Recoil Reduction 2 Item Schematics ----------------- None Robot Schematics ------------------ None Fabricated ------------ Nothing Alien Tech Used ----------------- None Achievements -------------- None Challenges ------------ None Game ------ Seed RelayReactiveRipper Manual? 0 Play Time 00:04:54 Cumulative 30.0 hours Start 2024.04.29 @ 21:44:20 End 2024.04.29 @ 21:48:38 Sessions 1 Manual Loads 0 Difficulty Rogue Special Mode None Game No. 36 Rogue 31 Adventurer 5 Explorer 0 Win Type - Total 0 Types 0/0/0/0/0/0/0/0/0 Lore% 24 Gallery% 27 Achievement% 22 Wizard Run 0 Options --------- Layout 2 ASCII 0 Keyboard 0 Movement Mouse Keybinds 0 Fullscreen 2 Font 24/Smallcaps Map View 50x44 Zoom Use 0% Tactical HUD 1 Map Filters NONE Filters NONE Steam 1 RUN: d7e9f8a5-8beb-4d82-8f4b-654e2a5394fb